fUST/lending_fUST_20250827
["ID","MTS","AMOUNT","RATE_DAILY","PERIOD"]
[381548812,1756278640059,-1233.3069371,0.00026203,2]
[381548814,1756278640068,-260.0,0.00026216,2]
[381548816,1756278640078,-201.93286099,0.0002625,2]
[381548818,1756278640088,-151.0,0.0002625,2]
[381548820,1756278640098,-151.0,0.0002625,2]
[381548822,1756278640108,-151.0,0.0002625,2]
[381548824,1756278640118,-151.0,0.0002625,2]
[381548826,1756278640128,-151.0,0.0002625,2]
[381548828,1756278640138,-159.46825272,0.0002625,2]
[381548830,1756278640147,-1500.0,0.00026268,2]
[381548832,1756278640157,-501.46140598,0.00026268,2]
[381548833,1756278640169,-1500.0,0.00026268,2]
[381548835,1756278640183,-1005.76236737,0.00026268,2]
[381548836,1756278640195,-1500.0,0.00026268,2]
[381548837,1756278640204,-1500.0,0.00026268,2]
[381548838,1756278640215,-1500.0,0.00026268,2]
[381548839,1756278640224,-558.31373769,0.00026268,2]
[381548840,1756278640234,-1508.32274485,0.00026268,2]
[381548841,1756278640244,-1500.0,0.00026268,2]
[381548842,1756278640254,-847.35570464,0.00026268,2]
[381548844,1756278640263,-1181.72219964,0.00026268,2]
[381548846,1756278640273,-151.0,0.000263,19]
[381548848,1756278640282,-500.0,0.00026442,2]
[381548850,1756278640291,-198.00310054,0.00026442,2]
[381548852,1756278640300,-1724.98,0.00026471,3]
[381548854,1756278640310,-862.48,0.00026471,3]
[381548856,1756278640319,-431.24,0.00026471,3]
[381548858,1756278640328,-2601.66,0.00026471,3]
[381548860,1756278640338,-1300.82,0.00026471,3]
[381548862,1756278640349,-650.42,0.00026471,3]
[381548864,1756278640358,-325.2,0.00026471,3]
[381548866,1756278640368,-160.0,0.00026471,3]
[381548868,1756278640378,-510.42,0.00026471,3]
[381548870,1756278640387,-510.42,0.00026471,3]
[381548872,1756278640397,-160.0,0.00026471,3]
[381548874,1756278640406,-417.15472785,0.00026471,3]
[381548875,1756278640415,-216.14835892,0.00026471,3]
[381548876,1756278640425,-217.23771399,0.00026471,3]
[381548877,1756278640434,-160.0,0.00026471,3]
[381548879,1756278640444,-529.56067766,0.00026471,3]
[381548881,1756278640453,-400.46,0.00026481,3]
[381548883,1756278640463,-3615.34,0.00026481,3]
[381548885,1756278640472,-31050.4655009,0.00026501,2]
[381548887,1756278640481,-333.53800979,0.00026501,2]
[381548889,1756278640491,-3954.14707281,0.00026511,2]
[381548891,1756278640501,-4585.76227723,0.0002656,2]
[381548893,1756278640511,-151.0,0.000266,13]
[381548895,1756278640520,-2500.0,0.00026664,2]
[381548897,1756278640530,-2071.13,0.00026667,2]
[381548899,1756278640539,-1474.470482,0.00026668,2]
[381548902,1756278640549,-1500.0,0.00026668,2]
[381548903,1756278640558,-1046.694467,0.00026676,2]
[381548904,1756278640568,-4965.45,0.000267,7]
[381548905,1756278640578,-500.0,0.00026716,2]
[381548906,1756278640587,-933.485983,0.00026763,2]
[381548907,1756278640597,-196.62,0.00026763,7]
[381548908,1756278640606,-360.0,0.00026764,2]
[381548909,1756278640616,-500.0,0.00026773,2]
[381548910,1756278640626,-500.0,0.00026773,2]
[381548911,1756278640635,-500.0,0.00026773,2]
[381548912,1756278640645,-500.0,0.00026773,2]
[381548913,1756278640654,-150.0,0.00026773,2]
[381548914,1756278640664,-160.40370053,0.00026773,2]
[381548915,1756278640674,-667.07601958,0.0002679,2]
[381548916,1756278640683,-13951.92,0.000268,2]
[381548917,1756278640692,-92975.71,0.000268,7]
[381548918,1756278640702,-151.0,0.000268,18]
[381548919,1756278640712,-244.730756,0.00026806,6]
[381548920,1756278640722,-6251.98269669,0.00026806,6]
[381548921,1756278640731,-773.29560583,0.00026816,2]
[381548922,1756278640741,-2000.0,0.00026816,2]
[381548923,1756278640750,-398.07412314,0.00026816,2]
[381548924,1756278640761,-2000.0,0.00026816,2]
[381548925,1756278640771,-1510.45820748,0.00026816,2]
[381548926,1756278640780,-2000.0,0.00026816,2]
[381548927,1756278640790,-244.730756,0.000269,20]
[381548928,1756278640799,-151.0,0.00026907,2]
[381548929,1756278640809,-866.0,0.00026907,2]
[381548930,1756278640818,-202.31733087,0.00026907,2]
[381548931,1756278640828,-151.0,0.00026907,2]
[381548932,1756278640838,-151.0,0.00026907,2]
[381548933,1756278640847,-500.0,0.00026907,2]
[381548934,1756278640857,-151.0,0.00026907,2]
[381548935,1756278640867,-500.0,0.00026907,2]
[381548936,1756278640876,-151.34928729,0.00026907,2]
[381548937,1756278640886,-151.65045741,0.00026907,2]
[381548938,1756278640896,-151.0,0.00026907,2]
[381548939,1756278640907,-151.0,0.00026944,2]
[381548940,1756278640916,-151.0,0.00026944,2]
[381548941,1756278640926,-151.0,0.00026944,2]
[381548942,1756278640936,-151.0,0.00026944,2]
[381548943,1756278640945,-151.0,0.00026944,2]
[381548944,1756278640955,-151.0,0.00026944,2]
[381548945,1756278640964,-500.0,0.00026944,2]
[381548946,1756278640973,-500.0,0.00026944,2]
[381548947,1756278640983,-500.0,0.00026944,2]
[381548948,1756278640993,-151.93706904,0.00026944,2]
[381548949,1756278641003,-151.50829414,0.00026944,2]
[381548950,1756278641013,-151.0,0.00026944,2]
[381548951,1756278641023,-151.0,0.00026944,2]
[381548952,1756278641032,-151.18953785,0.00026944,2]
[381548953,1756278641043,-151.0055701,0.00026944,2]
[381548954,1756278641055,-151.0,0.00026944,2]
[381548955,1756278641065,-151.0,0.00026944,2]
[381548956,1756278641075,-151.0,0.00026944,2]
[381548957,1756278641085,-151.0,0.00026944,2]
[381548958,1756278641096,-151.0,0.00026944,2]
[381548959,1756278641106,-6248.99142637,0.00026976,2]
[381548960,1756278641115,-333.53800979,0.0002698,2]
[381548961,1756278641126,-500.0,0.0002699,2]
[381548962,1756278641135,-623.00379086,0.00027013,2]
[381548963,1756278641145,-5000.0,0.00027033,2]
[381548964,1756278641156,-151.0,0.000271,12]
[381548965,1756278641166,-1000.2992067,0.00027123,3]
[381548966,1756278641178,-230.93347901,0.00027181,2]
[381548967,1756278641188,-866.0,0.00027181,2]
[381548968,1756278641198,-155.18906074,0.00027181,2]
[381548969,1756278641208,-151.0,0.00027181,2]
[381548970,1756278641217,-500.0,0.00027181,2]
[381548971,1756278641227,-151.0,0.00027181,2]
[381548972,1756278641236,-500.0,0.00027181,2]
[381548973,1756278641246,-151.0,0.00027181,2]
[381548974,1756278641256,-3000.0,0.00027212,2]
[381548975,1756278641265,-506.92283959,0.00027216,2]
[381548976,1756278641275,-151.0,0.00027218,2]
[381548977,1756278641285,-151.0,0.00027218,2]
[381548978,1756278641294,-152.70876926,0.00027218,2]
[381548979,1756278641303,-151.0,0.00027218,2]
[381548980,1756278641313,-151.0,0.00027218,2]
[381548981,1756278641322,-198.0,0.00027218,2]
[381548982,1756278641332,-500.0,0.00027218,2]
[381548983,1756278641343,-500.0,0.00027218,2]
[381548984,1756278641352,-550.6153923,0.00027218,2]
[381548985,1756278641361,-151.0,0.00027218,2]
[381548986,1756278641371,-151.70332095,0.00027218,2]
[381548988,1756278641380,-151.0,0.00027218,2]
[381548990,1756278641390,-154.97535819,0.00027218,2]
[381548992,1756278641399,-151.0,0.00027218,2]
[381548994,1756278641409,-151.0,0.00027218,2]
[381548996,1756278641419,-3954.14707281,0.00027256,2]
[381548998,1756278641428,-198.0,0.00027264,2]
[381549000,1756278641438,-4330.09069693,0.000273,2]
[381549002,1756278641448,-460.0,0.00027312,2]
[381549004,1756278641457,-9745.4108292,0.00027315,2]
[381549006,1756278641468,-1000.0,0.00027321,2]
[381549008,1756278641477,-503.96849117,0.00027321,2]
[381549010,1756278641487,-1000.0,0.00027321,2]
[381549011,1756278641497,-1000.0,0.00027321,2]
[381549012,1756278641506,-252.03074768,0.00027321,2]
[381549013,1756278641515,-2500.0,0.00027364,2]
[381549014,1756278641525,-505.47448285,0.00027364,2]
[381549015,1756278641534,-2500.0,0.00027364,2]
[381549016,1756278641544,-333.53800979,0.00027371,2]
[381549018,1756278641553,-500.0,0.00027373,2]
[381549020,1756278641563,-500.0,0.00027373,2]
[381549022,1756278641573,-500.0,0.00027373,2]
[381549024,1756278641583,-503.2238651,0.00027373,2]
[381549026,1756278641593,-501.56192813,0.00027373,2]
[381549028,1756278641602,-500.0,0.00027373,2]
[381549030,1756278641611,-500.0,0.00027373,2]
[381549032,1756278641621,-413.95211664,0.00027373,2]
[381549034,1756278641630,-500.0,0.00027373,2]
[381549036,1756278641640,-500.0,0.00027373,2]
[381549038,1756278641649,-500.0,0.00027373,2]
[381549040,1756278641659,-150.0,0.00027373,2]
[381549042,1756278641669,-500.0,0.00027373,2]
[381549044,1756278641680,-500.0,0.00027373,2]
[381549046,1756278641690,-150.0,0.00027373,2]
[381549048,1756278641699,-500.0,0.00027397,5]
[381549051,1756278641709,-151.0,0.000274,12]
[381549053,1756278641719,-6989.83,0.000274,7]
[381549055,1756278641728,-151.0,0.000274,15]
[381549057,1756278641740,-866.0,0.00027455,2]
[381549059,1756278641749,-151.0,0.00027455,2]
[381549061,1756278641759,-500.0,0.00027455,2]
[381549063,1756278641769,-151.95393366,0.00027455,2]
[381549065,1756278641778,-500.0,0.00027455,2]
[381549067,1756278641788,-151.0,0.00027455,2]
[381549069,1756278641798,-244.730756,0.00027481,20]
[381549071,1756278641808,-246.47729355,0.00027492,2]
[381549073,1756278641817,-151.0,0.00027492,2]
[381549075,1756278641829,-151.70519922,0.00027492,2]
[381549077,1756278641839,-500.0,0.00027492,2]
[381549079,1756278641849,-503.19506388,0.00027492,2]
[381549081,1756278641858,-247.28071032,0.00027492,2]
[381549083,1756278641868,-183.9151083,0.00027492,2]
[381549085,1756278641878,-151.0,0.00027492,2]
[381549087,1756278641887,-587.0,0.00027499,2]
[381549089,1756278641898,-151.0,0.000275,12]
[381549091,1756278641907,-5543.56609876,0.00027519,2]
[381549093,1756278641917,-3734.72550538,0.00027535,2]
[381549095,1756278641927,-151.0,0.000276,20]
[381549097,1756278641937,-209.40437684,0.00027619,2]
[381549098,1756278641946,-866.0,0.00027729,2]
[381549100,1756278641956,-151.0,0.00027729,2]
[381549102,1756278641965,-427.37048483,0.00027729,2]
[381549104,1756278641975,-153.92893483,0.00027729,2]
[381549106,1756278641985,-151.0,0.00027729,2]
[381549108,1756278641995,-3500.0,0.0002776,5]
[381549110,1756278642005,-151.0,0.00027766,2]
[381549112,1756278642014,-509.54880423,0.00027766,2]
[381549114,1756278642024,-151.0,0.00027766,2]
[381549116,1756278642034,-3000.0,0.000278,2]
[381549118,1756278642045,-3000.0,0.0002781,2]
[381549120,1756278642054,-3000.0,0.0002782,2]
[381549122,1756278642064,-3000.0,0.0002783,2]
[381549124,1756278642073,-333.53800979,0.0002783,2]
[381549126,1756278642083,-3000.0,0.0002784,2]
[381549128,1756278642094,-3000.0,0.0002785,2]
[381549130,1756278642104,-3000.0,0.0002786,2]
[381549132,1756278642114,-560.0,0.0002786,2]
[381549134,1756278642123,-1161.64318891,0.00027868,2]
[381549150,1756278642294,-1586.16377958,0.00027868,2]
[381549153,1756278642313,-184.41567228,0.00027868,5]
[381549155,1756278642322,-3000.0,0.0002787,2]
[381549157,1756278642332,-3000.0,0.0002788,2]
[381549159,1756278642342,-3000.0,0.0002789,2]
[381549161,1756278642352,-3000.0,0.000279,2]
[381549163,1756278642361,-151.0,0.000279,20]
[381549165,1756278642371,-3000.0,0.0002791,2]
[381549168,1756278642381,-3000.0,0.00027912,5]
[381549170,1756278642391,-2500.0,0.00027912,5]
[381549171,1756278642400,-3000.0,0.0002792,2]
[381549173,1756278642409,-502.97312964,0.00027921,5]
[381549176,1756278642419,-1000.0,0.00027921,5]
[381549177,1756278642430,-1000.0,0.00027921,2]
[381549179,1756278642440,-1000.0,0.00027921,5]
[381549181,1756278642450,-1000.0,0.00027921,5]
[381549183,1756278642460,-1002.51504051,0.00027921,5]
[381549185,1756278642469,-250.0,0.00027921,5]
[381549187,1756278642480,-502.46213118,0.00027921,5]
[381549190,1756278642491,-579.23238633,0.00027921,5]
[381549192,1756278642501,-250.0,0.00027921,5]
[381549195,1756278642511,-3000.0,0.0002793,2]
[381549197,1756278642520,-333.53800979,0.0002793,2]
[381549199,1756278642529,-3000.0,0.0002794,2]
[381549201,1756278642539,-3000.0,0.0002795,2]
[381549203,1756278642548,-4955.147006,0.0002796,2]
[381549205,1756278642558,-151.0,0.00028,19]
[381549207,1756278642568,-4965.45,0.00028,7]
[381549209,1756278642577,-3954.14707281,0.00028,2]
[381549211,1756278642587,-417.15472785,0.00028,10]
[381549213,1756278642597,-866.0,0.00028003,2]
[381549215,1756278642607,-151.0,0.00028003,2]
[381549217,1756278642616,-244.730756,0.00028017,2]
[381549219,1756278642626,-198.0,0.0002804,2]
[381549221,1756278642635,-151.0,0.0002804,2]
[381549223,1756278642645,-244.730756,0.00028063,20]
[381549225,1756278642655,-150.0,0.00028073,5]
[381549227,1756278642664,-667.07601958,0.0002809,2]
[381549230,1756278642674,-13951.92,0.000281,2]
[381549231,1756278642683,-92975.71,0.000281,7]
[381549233,1756278642694,-151.0,0.000282,19]
[381549235,1756278642703,-866.0,0.00028277,2]
[381549236,1756278642713,-245.0,0.00028277,2]
[381549237,1756278642723,-4000.0,0.00028308,5]
[381549238,1756278642732,-151.94225115,0.00028314,2]
[381549239,1756278642742,-660.0,0.00028408,2]
[381549240,1756278642751,-333.53800979,0.00028458,2]
[381549241,1756278642761,-3500.0,0.0002846,5]
[381549242,1756278642771,-1500.0,0.00028468,5]
[381549243,1756278642781,-1500.0,0.00028468,2]
[381549244,1756278642791,-835.82975421,0.00028468,5]
[381549245,1756278642800,-1500.0,0.00028468,5]
[381549246,1756278642810,-350.0,0.00028468,5]
[381549247,1756278642819,-350.0,0.00028468,5]
[381549248,1756278642829,-151.0,0.000285,17]
[381549249,1756278642839,-22314.98976921,0.00028525,2]
[381549250,1756278642848,-6251.98269669,0.00028533,10]
[381549251,1756278642858,-866.0,0.00028551,2]
[381549252,1756278642867,-151.0,0.000286,20]
[381549253,1756278642877,-216.14835892,0.000286,10]
[381549254,1756278642893,-300.0,0.00028621,5]
[381549255,1756278642902,-244.730756,0.00028645,20]
[381549256,1756278642912,-433.93,0.00028781,15]
[381549257,1756278642921,-163.3,0.00028793,15]
[381549258,1756278642931,-166.72,0.00028793,15]
[381549259,1756278642941,-6989.83,0.000288,7]
[381549260,1756278642950,-151.0,0.0002881,7]
[381549261,1756278642959,-151.0,0.0002881,7]
[381549262,1756278642969,-189.998145,0.0002881,7]
[381549264,1756278642979,-151.0,0.0002881,7]
[381549265,1756278642988,-151.0,0.0002881,7]
[381549267,1756278642998,-206.302463,0.0002881,7]
[381549269,1756278643008,-151.0,0.0002881,7]
[381549271,1756278643017,-151.0,0.0002881,7]
[381549273,1756278643028,-151.0,0.0002881,7]
[381549275,1756278643039,-151.0,0.0002881,7]
[381549277,1756278643049,-151.0,0.0002881,7]
[381549279,1756278643059,-155.37,0.0002881,15]
[381549281,1756278643068,-866.0,0.00028825,2]
[381549283,1756278643079,-283.18941831,0.00028856,5]
[381549285,1756278643088,-433.93,0.00028881,15]
[381549287,1756278643098,-163.3,0.00028893,15]
[381549289,1756278643107,-166.72180674,0.00028893,15]
[381549291,1756278643117,-155.37,0.0002891,15]
[381549293,1756278643126,-760.0,0.00028956,2]
[381549295,1756278643136,-333.53800979,0.0002898,2]
[381549297,1756278643146,-433.93,0.00028981,15]
[381549299,1756278643155,-217.15233878,0.00028988,2]
[381549301,1756278643165,-163.3,0.00028993,15]
[381549303,1756278643177,-244.730756,0.00029,10]
[381549306,1756278643188,-151.0,0.00029,7]
[381549308,1756278643197,-151.785022,0.00029,7]
[381549310,1756278643207,-151.0,0.00029,7]
[381549312,1756278643216,-151.0,0.00029,7]
[381549314,1756278643227,-151.0,0.00029,7]
[381549316,1756278643236,-194.833902,0.00029,7]
[381549318,1756278643246,-151.0,0.00029,7]
[381549320,1756278643257,-279.280072,0.00029,7]
[381549322,1756278643267,-151.0,0.00029,7]
[381549324,1756278643276,-151.0,0.00029,7]
[381549326,1756278643286,-300.677977,0.00029,7]
[381549328,1756278643295,-300.677977,0.00029,7]
[381549330,1756278643305,-300.677977,0.00029,7]
[381549332,1756278643315,-300.677977,0.00029,7]
[381549334,1756278643324,-151.0,0.00029,7]
[381549336,1756278643334,-151.0,0.00029,7]
[381549338,1756278643344,-151.0,0.00029,7]
[381549340,1756278643354,-500.0,0.00029,7]
[381549342,1756278643364,-500.0,0.00029,7]
[381549344,1756278643373,-500.0,0.00029,7]
[381549346,1756278643383,-500.0,0.00029,7]
[381549348,1756278643393,-151.0,0.00029,7]
[381549350,1756278643403,-2000.0,0.00029008,5]
[381549352,1756278643412,-155.38394297,0.0002901,15]
[381549354,1756278643422,-151.0,0.00029016,7]
[381549356,1756278643431,-270.049272,0.00029016,7]
[381549358,1756278643441,-194.813698,0.00029016,7]
[381549360,1756278643452,-194.813698,0.00029016,7]
[381549362,1756278643462,-151.0,0.00029016,7]
[381549364,1756278643471,-194.813698,0.00029016,7]
[381549366,1756278643481,-194.813698,0.00029016,7]
[381549368,1756278643491,-151.0,0.00029016,7]
[381549370,1756278643500,-151.0,0.00029016,7]
[381549372,1756278643510,-151.0,0.00029016,7]
[381549374,1756278643520,-151.0,0.00029016,7]
[381549376,1756278643530,-151.0,0.00029016,7]
[381549378,1756278643539,-205.789613,0.00029016,7]
[381549380,1756278643549,-151.0,0.00029016,7]
[381549382,1756278643559,-151.0,0.00029016,7]
[381549384,1756278643573,-151.0,0.00029016,7]
[381549387,1756278643584,-275.83744,0.00029016,7]
[381549389,1756278643594,-151.0,0.00029016,7]
[381549391,1756278643604,-2000.0,0.00029016,5]
[381549393,1756278643613,-2000.0,0.00029016,2]
[381549395,1756278643623,-2000.0,0.00029016,5]
[381549397,1756278643632,-452.02431384,0.00029016,5]
[381549399,1756278643642,-450.0,0.00029016,5]
[381549401,1756278643652,-4000.0,0.00029044,2]
[381549403,1756278643661,-433.93,0.00029081,15]
[381549405,1756278643671,-163.3,0.00029093,15]
[381549407,1756278643681,-866.0,0.00029099,2]
[381549409,1756278643690,-151.0,0.000291,15]
[381549411,1756278643700,-450.0,0.00029168,5]
[381549413,1756278643709,-433.93,0.00029181,15]
[381549415,1756278643719,-163.32186066,0.00029193,15]
[381549417,1756278643731,-250.0,0.00029201,2]
[381549419,1756278643741,-244.730756,0.00029226,20]
[381549421,1756278643751,-3679.0,0.00029241,2]
[381549423,1756278643760,-433.93,0.00029281,15]
[381549425,1756278643770,-5000.0,0.00029342,2]
[381549427,1756278643780,-153.0,0.00029371,2]
[381549429,1756278643789,-153.0,0.00029371,2]
[381549431,1756278643798,-153.0,0.00029371,2]
[381549433,1756278643808,-153.0,0.00029371,2]
[381549435,1756278643818,-153.0,0.00029371,2]
[381549437,1756278643828,-153.0,0.00029371,2]
[381549439,1756278643838,-866.0,0.00029373,2]
[381549441,1756278643847,-800.0,0.00029373,2]
[381549443,1756278643857,-433.93,0.00029381,15]
[381549445,1756278643866,-333.53800979,0.0002939,2]
[381549447,1756278643877,-13951.92,0.000294,2]
[381549449,1756278643887,-4965.45,0.000294,7]
[381549451,1756278643897,-92975.71,0.000294,7]
[381549453,1756278643907,-157.69187,0.000294,7]
[381549455,1756278643916,-151.0,0.000294,7]
[381549457,1756278643926,-1002.41907,0.000294,7]
[381549459,1756278643935,-151.0,0.000294,7]
[381549461,1756278643945,-1002.41907,0.000294,7]
[381549463,1756278643954,-157.69187,0.000294,7]
[381549465,1756278643964,-1002.41907,0.000294,7]
[381549467,1756278643974,-151.0,0.000294,7]
[381549469,1756278643983,-157.69187,0.000294,7]
[381549471,1756278643992,-151.0,0.000294,7]
[381549473,1756278644002,-1002.41907,0.000294,7]
[381549475,1756278644011,-157.69187,0.000294,7]
[381549477,1756278644023,-151.0,0.000294,7]
[381549479,1756278644032,-235.914186,0.000294,7]
[381549481,1756278644043,-183.467516,0.000294,7]
[381549483,1756278644052,-235.914186,0.000294,7]
[381549485,1756278644062,-151.0,0.000294,7]
[381549487,1756278644072,-235.914186,0.000294,7]
[381549489,1756278644082,-151.0,0.000294,7]
[381549491,1756278644091,-235.914186,0.000294,7]
[381549493,1756278644101,-151.0,0.000294,7]
[381549495,1756278644110,-151.0,0.000294,7]
[381549497,1756278644120,-1072.102854,0.000294,7]
[381549499,1756278644130,-166.058228,0.000294,7]
[381549501,1756278644140,-1072.102854,0.000294,7]
[381549503,1756278644149,-1072.102854,0.000294,7]
[381549504,1756278644158,-151.0,0.000294,7]
[381549505,1756278644169,-1072.102854,0.000294,7]
[381549506,1756278644181,-151.0,0.000294,7]
[381549507,1756278644191,-151.0,0.000294,7]
[381549509,1756278644201,-152.303452,0.000294,7]
[381549511,1756278644210,-3679.0,0.00029434,2]
[381549513,1756278644221,-433.93,0.00029481,15]
[381549515,1756278644231,-860.0,0.00029504,2]
[381549518,1756278644240,-153.0,0.0002954,2]
[381549520,1756278644251,-153.0,0.0002954,2]
[381549522,1756278644261,-1878.23275205,0.00029564,5]
[381549524,1756278644270,-2500.0,0.00029564,2]
[381549526,1756278644281,-1804.27150365,0.00029564,5]
[381549528,1756278644290,-550.0,0.00029564,5]
[381549530,1756278644300,-433.93,0.00029581,15]
[381549532,1756278644310,-1128.517335,0.00029589,120]
[381549534,1756278644319,-151.0,0.000296,12]
[381549536,1756278644329,-4330.09069693,0.00029628,2]
[381549538,1756278644339,-6000.0,0.00029641,2]
[381549540,1756278644348,-151.0,0.00029641,7]
[381549542,1756278644358,-243.323146,0.00029641,7]
[381549544,1756278644369,-151.0,0.00029641,7]
[381549546,1756278644378,-243.323146,0.00029641,7]
[381549548,1756278644388,-243.323146,0.00029641,7]
[381549550,1756278644397,-243.323146,0.00029641,7]
[381549552,1756278644407,-151.0,0.00029641,7]
[381549554,1756278644416,-151.0,0.00029641,7]
[381549556,1756278644426,-151.0,0.00029641,7]
[381549558,1756278644436,-151.0,0.00029641,7]
[381549560,1756278644445,-151.0,0.00029641,7]
[381549562,1756278644455,-151.0,0.00029641,7]
[381549564,1756278644464,-181.951389,0.00029641,7]
[381549566,1756278644474,-181.951389,0.00029641,7]
[381549568,1756278644484,-181.951389,0.00029641,7]
[381549570,1756278644493,-181.951389,0.00029641,7]
[381549572,1756278644503,-151.0,0.00029641,7]
[381549573,1756278644512,-151.0,0.00029641,7]
[381549575,1756278644522,-866.0,0.00029647,2]
[381549577,1756278644532,-162.06972335,0.00029659,5]
[381549579,1756278644542,-433.93,0.00029681,15]
[381549581,1756278644552,-151.05750653,0.00029716,5]
[381549583,1756278644562,-433.93,0.00029781,15]
[381549586,1756278644572,-823.0,0.00029841,2]
[381549588,1756278644583,-433.93,0.00029881,15]
[381549590,1756278644592,-866.0,0.00029921,2]
[381549592,1756278644602,-7000.0,0.00029942,2]
[381549594,1756278644612,-433.93,0.00029981,15]
[381549596,1756278644622,-237.0,0.00029984,2]
[381549598,1756278644632,-4000.0,0.0003,4]
[381549600,1756278644641,-6989.83,0.0003,7]
[381549602,1756278644651,-500.0,0.0003,7]
[381549604,1756278644660,-960.0,0.00030052,2]
[381549606,1756278644670,-244.730756,0.00030072,6]
[381549608,1756278644679,-433.93,0.00030081,15]
[381549610,1756278644690,-2500.03069539,0.00030112,2]
[381549612,1756278644699,-650.0,0.00030112,5]
[381549619,1756278644763,-1000.0,0.00030136,120]
[381549621,1756278644773,-1000.0,0.00030136,120]
[381549624,1756278644785,-1000.0,0.00030136,120]
[381549626,1756278644794,-1000.0,0.00030136,120]
[381549628,1756278644804,-1000.0,0.00030136,120]
[381549630,1756278644813,-1000.0,0.00030136,120]
[381549632,1756278644822,-1000.0,0.00030136,120]
[381549633,1756278644832,-1000.0,0.00030136,120]
[381549635,1756278644841,-1000.0,0.00030136,120]
[381549637,1756278644850,-1000.0,0.00030136,120]
[381549639,1756278644860,-1000.0,0.00030136,120]
[381549641,1756278644869,-1000.0,0.00030136,120]
[381549643,1756278644878,-823.86870072,0.00030136,120]
[381549645,1756278644888,-470.13943817,0.00030163,2]
[381549647,1756278644898,-433.93,0.00030181,15]
[381549649,1756278644908,-5000.0,0.00030182,2]
[381549651,1756278644917,-151.0,0.00030182,7]
[381549653,1756278644926,-151.0,0.00030182,7]
[381549656,1756278644936,-190.124591,0.00030182,7]
[381549657,1756278644945,-190.124591,0.00030182,7]
[381549659,1756278644954,-190.124591,0.00030182,7]
[381549661,1756278644964,-190.124591,0.00030182,7]
[381549663,1756278644973,-151.0,0.00030182,7]
[381549665,1756278644982,-151.0,0.00030182,7]
[381549667,1756278644991,-933.485983,0.00030188,2]
[381549669,1756278645001,-866.0,0.00030195,2]
[381549671,1756278645010,-151.0,0.000302,10]
[381549673,1756278645019,-237.0,0.00030239,2]
[381549675,1756278645029,-237.0,0.0003025,2]
[381549677,1756278645038,-6251.98269669,0.00030259,13]
[381549679,1756278645047,-470.13943817,0.00030263,2]
[381549681,1756278645057,-3679.0,0.00030265,7]
[381549684,1756278645067,-433.93,0.00030281,15]
[381549685,1756278645076,-225.18697532,0.00030357,2]
[381549688,1756278645088,-470.13943817,0.00030363,2]
[381549689,1756278645105,-244.730756,0.00030375,10]
[381549691,1756278645115,-433.93,0.00030381,15]
[381549693,1756278645125,-237.0,0.00030402,2]
[381549695,1756278645135,-237.0,0.00030407,7]
[381549697,1756278645145,-237.0,0.00030461,2]
[381549699,1756278645154,-470.13943817,0.00030463,2]
[381549701,1756278645164,-866.0,0.00030469,2]
[381549703,1756278645179,-433.93,0.00030481,15]